[Event "*** Titled Tuesday Blitz"]
[Site "Chess.com"]
[Date "2019.03.05"]
[Round "1"]
[White "chesstatour"]
[Black "Poghosyan_Suren"]
[Result "0-1"]
[WhiteElo "2018"]
[BlackElo "2484"]
[TimeControl "180+2"]
[EndTime "13:07:26 PST"]
[Termination "Poghosyan_Suren won on time"]

1. c4 {[%clk 0:03:01.9]} 1... Nf6 {[%clk 0:02:58.2]} 2. Nc3 {[%clk 0:03:02.7]}
2... e6 {[%clk 0:02:58.2]} 3. e4 {[%clk 0:03:02.7]} 3... d5 {[%clk 0:02:58.4]}
4. e5 {[%clk 0:03:03.2]} 4... d4 {[%clk 0:02:59.3]} 5. exf6 {[%clk 0:03:04]}
5... dxc3 {[%clk 0:03:00.2]} 6. bxc3 {[%clk 0:03:03.2]} 6... Qxf6 {[%clk
0:03:00.8]} 7. Nf3 {[%clk 0:03:04.3]} 7... e5 {[%clk 0:03:00.6]} 8. d4 {[%clk
0:03:01.4]} 8... exd4 {[%clk 0:03:01.1]} 9. cxd4 {[%clk 0:03:02.2]} 9... Bb4+
{[%clk 0:03:01.2]} 10. Bd2 {[%clk 0:03:02.7]} 10... Bxd2+ {[%clk 0:03:01.9]} 11.
Qxd2 {[%clk 0:03:04.6]} 11... O-O {[%clk 0:03:01.5]} 12. Be2 {[%clk 0:03:05.1]}
12... Bg4 {[%clk 0:03:02.2]} 13. O-O {[%clk 0:03:06.1]} 13... Nc6 {[%clk
0:03:01.5]} 14. Rfd1 {[%clk 0:02:55.6]} 14... Rad8 {[%clk 0:02:59.3]} 15. d5
{[%clk 0:02:53.4]} 15... Rfe8 {[%clk 0:02:50.2]} 16. h3 {[%clk 0:02:36.1]} 16...
Bxf3 {[%clk 0:02:25.3]} 17. Bxf3 {[%clk 0:02:34.4]} 17... Ne5 {[%clk 0:02:26.3]}
18. Be2 {[%clk 0:02:35]} 18... b6 {[%clk 0:02:25.2]} 19. Rac1 {[%clk 0:02:29.7]}
19... Ng6 {[%clk 0:02:21]} 20. Bf1 {[%clk 0:02:20.2]} 20... Nf4 {[%clk
0:02:20.8]} 21. g3 {[%clk 0:02:04.9]} 21... Ne6 {[%clk 0:02:20]} 22. Qc3 {[%clk
0:01:29.3]} 22... Qxc3 {[%clk 0:02:17.8]} 23. Rxc3 {[%clk 0:01:31.2]} 23... Nc5
{[%clk 0:02:19]} 24. f3 {[%clk 0:01:11.9]} 24... a5 {[%clk 0:02:16.8]} 25. Kf2
{[%clk 0:01:12.1]} 25... Kf8 {[%clk 0:02:17.8]} 26. Re3 {[%clk 0:01:07.6]} 26...
Rxe3 {[%clk 0:02:09.7]} 27. Kxe3 {[%clk 0:01:09.5]} 27... Ke7 {[%clk 0:02:10.9]}
28. Bd3 {[%clk 0:00:59.8]} 28... Kd6 {[%clk 0:02:10.4]} 29. h4 {[%clk
0:00:50.6]} 29... h6 {[%clk 0:02:08]} 30. Kd4 {[%clk 0:00:40]} 30... Re8 {[%clk
0:02:08.6]} 31. g4 {[%clk 0:00:27.7]} 31... c6 {[%clk 0:01:33.2]} 32. dxc6
{[%clk 0:00:24.3]} 32... Kxc6 {[%clk 0:01:33.9]} 33. Bc2 {[%clk 0:00:17.7]}
33... Re2 {[%clk 0:01:28.3]} 34. Kc3 {[%clk 0:00:07.8]} 34... Re3+ {[%clk
0:01:25.8]} 35. Kb2 {[%clk 0:00:05]} 35... Rxf3 {[%clk 0:01:25]} 36. Rd8 {[%clk
0:00:03.4]} 36... Rf2 {[%clk 0:01:24.3]} 37. Rc8+ {[%clk 0:00:02.9]} 37... Kd7
{[%clk 0:01:24.7]} 38. Rb8 {[%clk 0:00:03]} 38... Kc7 {[%clk 0:01:24.2]} 0-1

[Event "*** Titled Tuesday Blitz"]
[Site "Chess.com"]
[Date "2019.03.05"]
[Round "1"]
[White "SimonKnightRivendell"]
[Black "fm_magua"]
[Result "0-1"]
[WhiteElo "2002"]
[BlackElo "2482"]
[TimeControl "180+2"]
[EndTime "13:07:28 PST"]
[Termination "fm_magua won by resignation"]

1. Nf3 {[%clk 0:02:52.8]} 1... c5 {[%clk 0:03:00.2]} 2. g3 {[%clk 0:02:52.3]}
2... Nc6 {[%clk 0:03:00.3]} 3. Bg2 {[%clk 0:02:53.7]} 3... e5 {[%clk 0:03:01.8]}
4. d3 {[%clk 0:02:53.3]} 4... d5 {[%clk 0:03:03.3]} 5. c4 {[%clk 0:02:53.7]}
5... d4 {[%clk 0:02:59.3]} 6. O-O {[%clk 0:02:53.4]} 6... Be6 {[%clk 0:02:59.4]}
7. a3 {[%clk 0:02:50.5]} 7... Be7 {[%clk 0:03:00.1]} 8. b4 {[%clk 0:02:49.5]}
8... cxb4 {[%clk 0:02:57.6]} 9. Bd2 {[%clk 0:02:47.5]} 9... bxa3 {[%clk
0:02:56.9]} 10. Nxa3 {[%clk 0:02:48.4]} 10... Nf6 {[%clk 0:02:58]} 11. Qb3
{[%clk 0:02:42.2]} 11... O-O {[%clk 0:02:33.6]} 12. Qxb7 {[%clk 0:02:37.7]}
12... Qc8 {[%clk 0:02:22.3]} 13. Qxc8 {[%clk 0:02:28.9]} 13... Raxc8 {[%clk
0:02:21]} 14. Nb5 {[%clk 0:02:29.5]} 14... e4 {[%clk 0:02:18.5]} 15. Nfxd4
{[%clk 0:02:28.4]} 15... exd3 {[%clk 0:02:16.3]} 16. exd3 {[%clk 0:02:27.4]}
16... Nxd4 {[%clk 0:02:10]} 17. Nxd4 {[%clk 0:02:27.1]} 17... Bg4 {[%clk
0:02:11.2]} 18. Rfe1 {[%clk 0:02:17.9]} 18... Bc5 {[%clk 0:02:11.1]} 19. Nb3
{[%clk 0:02:14.9]} 19... Bb6 {[%clk 0:02:06.9]} 20. c5 {[%clk 0:02:12.1]} 20...
Bxc5 {[%clk 0:02:05.8]} 21. Nxc5 {[%clk 0:02:12.6]} 21... Rxc5 {[%clk
0:02:07.7]} 22. Bb4 {[%clk 0:02:08.6]} 22... Rcc8 {[%clk 0:02:01.1]} 23. Bxf8
{[%clk 0:02:08.8]} 23... Rxf8 {[%clk 0:02:03]} 24. Rxa7 {[%clk 0:02:09]} 24...
Rd8 {[%clk 0:02:02]} 25. Ra8 {[%clk 0:02:04]} 25... Rxa8 {[%clk 0:02:01.2]} 26.
Bxa8 {[%clk 0:02:04.4]} 26... g6 {[%clk 0:02:02.2]} 27. d4 {[%clk 0:02:04.2]}
27... Be6 {[%clk 0:02:03.2]} 28. f4 {[%clk 0:01:58.8]} 28... Kf8 {[%clk
0:02:03.3]} 29. Kf2 {[%clk 0:01:58.8]} 29... h5 {[%clk 0:02:02.8]} 30. Bf3
{[%clk 0:01:54.5]} 30... Bc4 {[%clk 0:01:59]} 31. Rc1 {[%clk 0:01:53.9]} 31...
Be6 {[%clk 0:01:59.6]} 32. Ke3 {[%clk 0:01:47.1]} 32... Ke7 {[%clk 0:02:00.7]}
33. Rc5 {[%clk 0:01:40.1]} 33... Kd6 {[%clk 0:02:01.7]} 34. Ra5 {[%clk
0:01:40.2]} 34... Bc4 {[%clk 0:02:01.6]} 35. Rc5 {[%clk 0:01:38.7]} 35... Be6
{[%clk 0:02:01.4]} 36. Rc6+ {[%clk 0:01:39.4]} 36... Kd7 {[%clk 0:02:02.7]} 37.
Kd3 {[%clk 0:01:34]} 37... Bf5+ {[%clk 0:01:57.1]} 38. Kc4 {[%clk 0:01:32.9]}
38... Ng4 {[%clk 0:01:49.2]} 39. Ra6 {[%clk 0:01:23.5]} 39... Nxh2 {[%clk
0:01:47.3]} 40. Ra7+ {[%clk 0:01:22.9]} 40... Kd6 {[%clk 0:01:45.8]} 41. Be2
{[%clk 0:01:18.9]} 41... Be6+ {[%clk 0:01:45.6]} 42. Kc3 {[%clk 0:01:14]} 42...
Ng4 {[%clk 0:01:46.7]} 43. Bxg4 {[%clk 0:01:14.4]} 43... hxg4 {[%clk 0:01:47.7]}
44. Ra5 {[%clk 0:01:13.1]} 44... Bd5 {[%clk 0:01:47.3]} 45. Kd3 {[%clk 0:01:09]}
45... Bb3 {[%clk 0:01:42.8]} 46. Rg5 {[%clk 0:01:08.4]} 46... Be6 {[%clk
0:01:40.8]} 47. Ke4 {[%clk 0:01:04.8]} 47... Ba2 {[%clk 0:01:33.6]} 48. Rxg4
{[%clk 0:01:03.6]} 48... f5+ {[%clk 0:01:34.1]} 49. Ke3 {[%clk 0:01:02.1]} 49...
fxg4 {[%clk 0:01:34.7]} 50. Kd3 {[%clk 0:00:55.9]} 50... Kd5 {[%clk 0:01:33.8]}
51. Ke3 {[%clk 0:00:57.2]} 51... Bb1 {[%clk 0:01:35]} 52. f5 {[%clk 0:00:54.6]}
52... gxf5 {[%clk 0:01:35.6]} 53. Kf4 {[%clk 0:00:55.8]} 53... Kxd4 {[%clk
0:01:36.6]} 54. Kg5 {[%clk 0:00:56.4]} 54... Ke3 {[%clk 0:01:37.9]} 55. Kh4
{[%clk 0:00:56.6]} 55... Kf3 {[%clk 0:01:37.9]} 0-1

[Event "*** Titled Tuesday Blitz"]
[Site "Chess.com"]
[Date "2019.03.05"]
[Round "1"]
[White "A-Fier"]
[Black "Warre"]
[Result "1-0"]
[WhiteElo "2747"]
[BlackElo "2391"]
[TimeControl "180+2"]
[EndTime "13:07:34 PST"]
[Termination "A-Fier won by checkmate"]

1. Nf3 {[%clk 0:03:01.9]} 1... Nf6 {[%clk 0:02:59.6]} 2. c4 {[%clk 0:03:02.9]}
2... e6 {[%clk 0:03:00.6]} 3. g3 {[%clk 0:03:03.2]} 3... d5 {[%clk 0:03:01.6]}
4. b3 {[%clk 0:03:04.5]} 4... Be7 {[%clk 0:03:01]} 5. Bg2 {[%clk 0:03:05.9]}
5... O-O {[%clk 0:03:01.9]} 6. O-O {[%clk 0:03:07.5]} 6... d4 {[%clk 0:03:02.3]}
7. e3 {[%clk 0:03:07.3]} 7... c5 {[%clk 0:03:03.2]} 8. exd4 {[%clk 0:03:08.6]}
8... cxd4 {[%clk 0:03:04.6]} 9. Bb2 {[%clk 0:03:10.1]} 9... Nc6 {[%clk
0:03:05.4]} 10. Re1 {[%clk 0:03:11.5]} 10... Re8 {[%clk 0:03:00.2]} 11. d3
{[%clk 0:03:08.8]} 11... Bf8 {[%clk 0:02:54.6]} 12. Ne5 {[%clk 0:03:09.2]} 12...
Nxe5 {[%clk 0:02:55]} 13. Rxe5 {[%clk 0:03:11.1]} 13... Nd7 {[%clk 0:02:55.2]}
14. Re2 {[%clk 0:03:12.1]} 14... e5 {[%clk 0:02:53]} 15. Qe1 {[%clk 0:03:12.4]}
15... Qb6 {[%clk 0:02:43]} 16. Nd2 {[%clk 0:02:53.3]} 16... Bb4 {[%clk
0:02:39.6]} 17. a3 {[%clk 0:02:47.2]} 17... Bxd2 {[%clk 0:02:37]} 18. Qxd2
{[%clk 0:02:47.8]} 18... Nc5 {[%clk 0:02:02.2]} 19. Bxd4 {[%clk 0:02:47.5]}
19... Nxb3 {[%clk 0:02:03.3]} 20. Bxb6 {[%clk 0:02:46.7]} 20... Nxd2 {[%clk
0:02:04.4]} 21. Be3 {[%clk 0:02:39.4]} 21... Nb3 {[%clk 0:02:03.8]} 22. Rb1
{[%clk 0:02:40.7]} 22... Na5 {[%clk 0:02:04.9]} 23. Bc5 {[%clk 0:01:50.4]} 23...
Bf5 {[%clk 0:01:56.3]} 24. Re3 {[%clk 0:01:46.8]} 24... Nxc4 {[%clk 0:01:38.6]}
25. Ree1 {[%clk 0:01:47]} 25... Rac8 {[%clk 0:01:01.1]} 26. Bxa7 {[%clk
0:01:45.9]} 26... Bxd3 {[%clk 0:00:57.5]} 27. Rxb7 {[%clk 0:01:45.6]} 27... e4
{[%clk 0:00:51.1]} 28. a4 {[%clk 0:01:44.3]} 28... Nd2 {[%clk 0:00:49.7]} 29. a5
{[%clk 0:01:29.1]} 29... Nf3+ {[%clk 0:00:47.6]} 30. Bxf3 {[%clk 0:01:29.9]}
30... exf3 {[%clk 0:00:49.5]} 31. Be3 {[%clk 0:01:31]} 31... h5 {[%clk
0:00:46.5]} 32. h3 {[%clk 0:01:31.5]} 32... Rc2 {[%clk 0:00:35.3]} 33. Rb3
{[%clk 0:01:18.1]} 33... Be2 {[%clk 0:00:30.1]} 34. Ra1 {[%clk 0:01:17.2]} 34...
Rc6 {[%clk 0:00:26.1]} 35. Bb6 {[%clk 0:01:15.3]} 35... Ra8 {[%clk 0:00:25.5]}
36. Rb4 {[%clk 0:01:14.6]} 36... Rac8 {[%clk 0:00:24]} 37. g4 {[%clk 0:01:15.3]}
37... hxg4 {[%clk 0:00:24.6]} 38. hxg4 {[%clk 0:01:16.1]} 38... Rc1+ {[%clk
0:00:26.2]} 39. Rxc1 {[%clk 0:01:17.3]} 39... Rxc1+ {[%clk 0:00:28.1]} 40. Kh2
{[%clk 0:01:18.8]} 40... Ra1 {[%clk 0:00:29.5]} 41. Kg3 {[%clk 0:01:19.6]} 41...
Ra2 {[%clk 0:00:29.4]} 42. Rd4 {[%clk 0:01:19.7]} 42... g6 {[%clk 0:00:28.9]}
43. Rd8+ {[%clk 0:01:20.2]} 43... Kg7 {[%clk 0:00:29.8]} 44. Bd4+ {[%clk
0:01:21.1]} 44... Kh7 {[%clk 0:00:30.3]} 45. Rh8# {[%clk 0:01:21.6]} 1-0

[Event "*** Titled Tuesday Blitz"]
[Site "Chess.com"]
[Date "2019.03.05"]
[Round "1"]
[White "Mostii"]
[Black "Shant_Sargsyan"]
[Result "1-0"]
[WhiteElo "2454"]
[BlackElo "2917"]
[TimeControl "180+2"]
[EndTime "13:07:35 PST"]
[Termination "Mostii won by checkmate"]

1. d4 {[%clk 0:02:41]} 1... Nf6 {[%clk 0:02:59.7]} 2. Nf3 {[%clk 0:02:42.2]}
2... g6 {[%clk 0:03:01.1]} 3. g3 {[%clk 0:02:43.3]} 3... Bg7 {[%clk 0:03:02.6]}
4. Bg2 {[%clk 0:02:44.2]} 4... d5 {[%clk 0:03:04.2]} 5. O-O {[%clk 0:02:45.2]}
5... O-O {[%clk 0:03:06.1]} 6. b3 {[%clk 0:02:47]} 6... Nc6 {[%clk 0:03:08]} 7.
Bb2 {[%clk 0:02:48.1]} 7... Ne4 {[%clk 0:03:09.6]} 8. Nbd2 {[%clk 0:02:49.4]}
8... Bf5 {[%clk 0:03:10.9]} 9. c4 {[%clk 0:02:49.8]} 9... e6 {[%clk 0:03:11.3]}
10. cxd5 {[%clk 0:02:50.5]} 10... exd5 {[%clk 0:03:13.2]} 11. Ne5 {[%clk
0:02:46.4]} 11... Nxe5 {[%clk 0:03:14.2]} 12. dxe5 {[%clk 0:02:46.8]} 12... Nxd2
{[%clk 0:03:15.4]} 13. Qxd2 {[%clk 0:02:48.7]} 13... c6 {[%clk 0:03:17.3]} 14.
Rfd1 {[%clk 0:02:43.2]} 14... Re8 {[%clk 0:03:18.3]} 15. f4 {[%clk 0:02:39]}
15... f6 {[%clk 0:03:19.5]} 16. e4 {[%clk 0:02:31.3]} 16... Bg4 {[%clk
0:03:09.2]} 17. Re1 {[%clk 0:02:25]} 17... fxe5 {[%clk 0:02:27.2]} 18. exd5
{[%clk 0:02:20.8]} 18... Qb6+ {[%clk 0:01:47.4]} 19. Qf2 {[%clk 0:02:11.2]}
19... Qxf2+ {[%clk 0:01:46.5]} 20. Kxf2 {[%clk 0:02:13.1]} 20... exf4 {[%clk
0:01:42.7]} 21. Bxg7 {[%clk 0:02:13.1]} 21... Kxg7 {[%clk 0:01:44.6]} 22. dxc6
{[%clk 0:02:12]} 22... bxc6 {[%clk 0:01:43.1]} 23. gxf4 {[%clk 0:02:01.2]} 23...
Bd7 {[%clk 0:01:33.3]} 24. Rxe8 {[%clk 0:01:52.3]} 24... Rxe8 {[%clk 0:01:34.4]}
25. Rd1 {[%clk 0:01:53.3]} 25... Bg4 {[%clk 0:01:34.1]} 26. Re1 {[%clk
0:01:52.7]} 26... Rd8 {[%clk 0:01:23.5]} 27. Bxc6 {[%clk 0:01:43.3]} 27... Kf6
{[%clk 0:01:24.1]} 28. Bf3 {[%clk 0:01:39.1]} 28... Bf5 {[%clk 0:01:20.8]} 29.
Rd1 {[%clk 0:01:36.4]} 29... Rc8 {[%clk 0:01:20.1]} 30. Rd6+ {[%clk 0:01:35.1]}
30... Ke7 {[%clk 0:01:17.6]} 31. Rd2 {[%clk 0:01:36]} 31... Rc3 {[%clk
0:01:17.2]} 32. Bd5 {[%clk 0:01:33.3]} 32... Kf6 {[%clk 0:01:18.2]} 33. Bf3
{[%clk 0:01:32.5]} 33... a5 {[%clk 0:01:18.4]} 34. Rd6+ {[%clk 0:01:32.7]} 34...
Ke7 {[%clk 0:01:19.1]} 35. Rd2 {[%clk 0:01:33.5]} 35... Rc1 {[%clk 0:01:20.1]}
36. Kg3 {[%clk 0:01:27.5]} 36... Rg1+ {[%clk 0:01:20.4]} 37. Kf2 {[%clk
0:01:28.6]} 37... Ra1 {[%clk 0:01:21.8]} 38. Bd5 {[%clk 0:01:23.4]} 38... Bb1
{[%clk 0:01:17.1]} 39. a4 {[%clk 0:01:19.8]} 39... Bf5 {[%clk 0:01:14]} 40. Bc4
{[%clk 0:01:07.2]} 40... Kf6 {[%clk 0:01:10.8]} 41. Rd6+ {[%clk 0:01:07]} 41...
Kg7 {[%clk 0:01:10.3]} 42. Ra6 {[%clk 0:01:07.7]} 42... Ra2+ {[%clk 0:01:08]}
43. Kg3 {[%clk 0:01:07.4]} 43... h5 {[%clk 0:01:05.3]} 44. Ra7+ {[%clk
0:00:54.8]} 44... Kf6 {[%clk 0:01:06.3]} 45. Rf7# {[%clk 0:00:54.4]} 1-0

[Event "*** Titled Tuesday Blitz"]
[Site "Chess.com"]
[Date "2019.03.05"]
[Round "1"]
[White "belisarius64"]
[Black "Perecke"]
[Result "1-0"]
[WhiteElo "2489"]
[BlackElo "2042"]
[TimeControl "180+2"]
[EndTime "13:07:40 PST"]
[Termination "belisarius64 won by resignation"]

1. e4 {[%clk 0:03:00.1]} 1... e5 {[%clk 0:03:00.5]} 2. Nf3 {[%clk 0:02:59.7]}
2... Nc6 {[%clk 0:02:52.3]} 3. Bc4 {[%clk 0:03:00.4]} 3... Bc5 {[%clk
0:02:52.2]} 4. O-O {[%clk 0:03:00.2]} 4... Nf6 {[%clk 0:02:52.9]} 5. d3 {[%clk
0:03:01.2]} 5... d6 {[%clk 0:02:50.8]} 6. c3 {[%clk 0:03:00.8]} 6... Bg4 {[%clk
0:02:48.2]} 7. h3 {[%clk 0:03:00.4]} 7... Bh5 {[%clk 0:02:49]} 8. Nbd2 {[%clk
0:02:58.1]} 8... Qd7 {[%clk 0:02:47]} 9. Re1 {[%clk 0:02:56.4]} 9... O-O-O
{[%clk 0:02:46]} 10. Nf1 {[%clk 0:02:57.4]} 10... Bg6 {[%clk 0:02:14.7]} 11. Ng3
{[%clk 0:02:57.1]} 11... Nh5 {[%clk 0:02:15.5]} 12. Nxe5 {[%clk 0:02:43.8]}
12... Nxe5 {[%clk 0:02:09.5]} 13. Nxh5 {[%clk 0:02:44.5]} 13... Nxc4 {[%clk
0:02:07.7]} 14. dxc4 {[%clk 0:02:46.4]} 14... Qe6 {[%clk 0:02:03.9]} 15. b3
{[%clk 0:02:27.8]} 15... Qe5 {[%clk 0:01:53.5]} 16. Nf4 {[%clk 0:02:03.4]} 16...
Qxc3 {[%clk 0:01:51.2]} 17. Nxg6 {[%clk 0:01:51.3]} 17... Qxa1 {[%clk
0:01:22.9]} 18. Nxh8 {[%clk 0:01:43.4]} 18... Qf6 {[%clk 0:01:16]} 19. Be3
{[%clk 0:01:37.3]} 19... Bxe3 {[%clk 0:01:14.3]} 20. Rxe3 {[%clk 0:01:39.2]}
20... Rxh8 {[%clk 0:01:15]} 21. Qd5 {[%clk 0:01:37.1]} 21... Re8 {[%clk
0:01:09]} 22. Rf3 {[%clk 0:01:33]} 22... Qa1+ {[%clk 0:00:55.7]} 23. Kh2 {[%clk
0:01:33.8]} 23... f6 {[%clk 0:00:55.2]} 24. Rg3 {[%clk 0:01:25.5]} 24... g6
{[%clk 0:00:50.4]} 25. Rf3 {[%clk 0:01:20.5]} 25... Qe5+ {[%clk 0:00:42.9]} 26.
Qxe5 {[%clk 0:01:20.4]} 26... Rxe5 {[%clk 0:00:41.5]} 27. Rxf6 {[%clk 0:01:19]}
27... Rxe4 {[%clk 0:00:42.6]} 28. Rf7 {[%clk 0:01:20.5]} 28... Re2 {[%clk
0:00:42.5]} 29. a4 {[%clk 0:00:56.5]} 29... Rb2 {[%clk 0:00:37.1]} 30. Rxh7
{[%clk 0:00:57]} 30... Rxb3 {[%clk 0:00:37.6]} 31. Rg7 {[%clk 0:00:58.1]} 31...
Rb4 {[%clk 0:00:38.8]} 32. Rxg6 {[%clk 0:00:59.2]} 32... Rxc4 {[%clk 0:00:35.7]}
33. g4 {[%clk 0:01:00]} 33... d5 {[%clk 0:00:33.4]} 34. h4 {[%clk 0:00:54.6]}
34... d4 {[%clk 0:00:33.8]} 35. h5 {[%clk 0:00:56.1]} 35... d3 {[%clk
0:00:34.5]} 36. h6 {[%clk 0:00:56.5]} 36... d2 {[%clk 0:00:27.5]} 37. h7 {[%clk
0:00:57.2]} 37... d1=Q {[%clk 0:00:28.3]} 38. h8=Q+ {[%clk 0:00:58.5]} 38... Qd8
{[%clk 0:00:24.3]} 39. Rg8 {[%clk 0:00:59.4]} 1-0

[Event "*** Titled Tuesday Blitz"]
[Site "Chess.com"]
[Date "2019.03.05"]
[Round "1"]
[White "NM2019"]
[Black "Paparama_1917"]
[Result "1-0"]
[WhiteElo "2078"]
[BlackElo "2473"]
[TimeControl "180+2"]
[EndTime "13:07:43 PST"]
[Termination "NM2019 won on time"]

1. e4 {[%clk 0:02:42.8]} 1... d6 {[%clk 0:03:01.1]} 2. d4 {[%clk 0:02:43.2]}
2... Nf6 {[%clk 0:03:02.3]} 3. Bd3 {[%clk 0:02:43.4]} 3... e5 {[%clk 0:03:01.6]}
4. c3 {[%clk 0:02:42.3]} 4... Nbd7 {[%clk 0:03:01.1]} 5. Nf3 {[%clk 0:02:41.8]}
5... g6 {[%clk 0:03:00.9]} 6. O-O {[%clk 0:02:41.8]} 6... Bg7 {[%clk 0:02:48.7]}
7. Bg5 {[%clk 0:02:41.9]} 7... h6 {[%clk 0:02:49.7]} 8. Be3 {[%clk 0:02:41.3]}
8... O-O {[%clk 0:02:48.4]} 9. h3 {[%clk 0:02:40.2]} 9... d5 {[%clk 0:02:42.9]}
10. dxe5 {[%clk 0:02:34.4]} 10... Nxe4 {[%clk 0:02:41]} 11. Qc1 {[%clk
0:02:21.4]} 11... g5 {[%clk 0:02:32.4]} 12. Rd1 {[%clk 0:02:19.2]} 12... Qe7
{[%clk 0:02:31.6]} 13. Nbd2 {[%clk 0:02:06.1]} 13... Ndc5 {[%clk 0:02:11.9]} 14.
Bb1 {[%clk 0:02:00.3]} 14... Bf5 {[%clk 0:01:30.1]} 15. Bd4 {[%clk 0:01:50.9]}
15... Rfe8 {[%clk 0:01:25.1]} 16. b4 {[%clk 0:01:49.3]} 16... Ne6 {[%clk
0:01:24.3]} 17. Nxe4 {[%clk 0:01:46.1]} 17... dxe4 {[%clk 0:01:16.4]} 18. Nd2
{[%clk 0:01:45.6]} 18... c5 {[%clk 0:01:07.5]} 19. bxc5 {[%clk 0:01:43.5]} 19...
Nxc5 {[%clk 0:01:06.6]} 20. Qa3 {[%clk 0:01:27.8]} 20... Nd3 {[%clk 0:01:02]}
21. Qxe7 {[%clk 0:01:25]} 21... Rxe7 {[%clk 0:01:03.9]} 22. Nxe4 {[%clk
0:01:09.9]} 22... Nb2 {[%clk 0:00:56.7]} 23. Re1 {[%clk 0:00:54.4]} 23... Rd8
{[%clk 0:00:54.7]} 24. Bc2 {[%clk 0:00:49.9]} 24... Bg6 {[%clk 0:00:51.4]} 25.
Bb3 {[%clk 0:00:46.2]} 25... Nd3 {[%clk 0:00:26.6]} 26. Re3 {[%clk 0:00:43.4]}
26... Nxe5 {[%clk 0:00:12.3]} 27. Nc5 {[%clk 0:00:34.9]} 1-0

[Event "*** Titled Tuesday Blitz"]
[Site "Chess.com"]
[Date "2019.03.05"]
[Round "1"]
[White "Kimster98"]
[Black "MishkaFighter"]
[Result "0-1"]
[WhiteElo "2606"]
[BlackElo "2296"]
[TimeControl "180+2"]
[EndTime "13:07:45 PST"]
[Termination "MishkaFighter won by resignation"]

1. Nf3 {[%clk 0:03:01.9]} 1... g6 {[%clk 0:02:59.6]} 2. d4 {[%clk 0:03:01.8]}
2... Nf6 {[%clk 0:02:59.7]} 3. g3 {[%clk 0:03:03.2]} 3... Bg7 {[%clk 0:03:00.7]}
4. Bg2 {[%clk 0:03:05.1]} 4... O-O {[%clk 0:02:59.9]} 5. O-O {[%clk 0:03:07]}
5... d5 {[%clk 0:02:59.3]} 6. c4 {[%clk 0:03:06.2]} 6... c6 {[%clk 0:02:59.1]}
7. Qb3 {[%clk 0:03:07.4]} 7... a5 {[%clk 0:02:57.7]} 8. cxd5 {[%clk 0:03:07.5]}
8... a4 {[%clk 0:02:56.3]} 9. Qd1 {[%clk 0:03:08.5]} 9... cxd5 {[%clk 0:02:55]}
10. Nc3 {[%clk 0:03:09.8]} 10... Ne4 {[%clk 0:02:56.1]} 11. Nxa4 {[%clk
0:02:54]} 11... Qa5 {[%clk 0:02:52.7]} 12. Nc3 {[%clk 0:02:51.1]} 12... Nxc3
{[%clk 0:02:44]} 13. bxc3 {[%clk 0:02:53]} 13... Qxc3 {[%clk 0:02:45.9]} 14. Bd2
{[%clk 0:02:54.4]} 14... Qa3 {[%clk 0:02:45.8]} 15. Qb3 {[%clk 0:02:51.1]} 15...
Nc6 {[%clk 0:02:46.3]} 16. e3 {[%clk 0:02:44]} 16... Qxb3 {[%clk 0:02:35.3]} 17.
axb3 {[%clk 0:02:45.9]} 17... Bf5 {[%clk 0:02:37]} 18. Rfc1 {[%clk 0:02:39.3]}
18... Be4 {[%clk 0:02:29]} 19. Bc3 {[%clk 0:02:38.3]} 19... Rfc8 {[%clk
0:02:21.7]} 20. Nd2 {[%clk 0:02:35.3]} 20... Bxg2 {[%clk 0:02:22.3]} 21. Kxg2
{[%clk 0:02:37.2]} 21... e6 {[%clk 0:02:21.8]} 22. b4 {[%clk 0:02:09.7]} 22...
Ne7 {[%clk 0:02:17.1]} 23. Rxa8 {[%clk 0:02:07.1]} 23... Rxa8 {[%clk 0:02:19]}
24. b5 {[%clk 0:02:08.3]} 24... Rc8 {[%clk 0:02:11.8]} 25. Nb3 {[%clk
0:02:07.7]} 25... Nf5 {[%clk 0:02:08.8]} 26. Ba5 {[%clk 0:02:01.6]} 26... Rxc1
{[%clk 0:02:01.5]} 27. Nxc1 {[%clk 0:02:03.5]} 27... Nd6 {[%clk 0:02:03.4]} 28.
b6 {[%clk 0:01:58.2]} 28... Nc4 {[%clk 0:02:04.5]} 29. Bb4 {[%clk 0:01:59.5]}
29... Nxb6 {[%clk 0:02:05]} 30. Nd3 {[%clk 0:02:00.6]} 30... Nc4 {[%clk
0:02:02.5]} 31. Kf3 {[%clk 0:01:54.9]} 31... Bf8 {[%clk 0:02:02.5]} 32. Bc3
{[%clk 0:01:53.1]} 32... Bd6 {[%clk 0:02:01.8]} 33. Ke2 {[%clk 0:01:53.5]} 33...
Kf8 {[%clk 0:02:01.6]} 34. f3 {[%clk 0:01:54.4]} 34... Ke7 {[%clk 0:02:02.3]}
35. e4 {[%clk 0:01:55.9]} 35... Kd7 {[%clk 0:02:03.9]} 36. Kf2 {[%clk
0:01:52.1]} 36... Kc6 {[%clk 0:02:04.8]} 37. h4 {[%clk 0:01:49.1]} 37... Kb5
{[%clk 0:02:06]} 38. g4 {[%clk 0:01:39.1]} 38... Ka4 {[%clk 0:02:04.6]} 39. exd5
{[%clk 0:01:39.8]} 39... exd5 {[%clk 0:02:03.6]} 40. Ke2 {[%clk 0:01:41.3]}
40... Kb3 {[%clk 0:02:04.5]} 41. Be1 {[%clk 0:01:42.2]} 41... b5 {[%clk
0:02:04.6]} 42. h5 {[%clk 0:01:42.8]} 42... b4 {[%clk 0:02:04.1]} 43. f4 {[%clk
0:01:44.1]} 43... Ka3 {[%clk 0:02:02.6]} 44. Kd1 {[%clk 0:01:41.1]} 44... b3
{[%clk 0:01:57.9]} 45. Bc3 {[%clk 0:01:39.3]} 45... Ne3+ {[%clk 0:01:47.9]} 46.
Ke2 {[%clk 0:01:35.9]} 46... Nxg4 {[%clk 0:01:49.8]} 47. hxg6 {[%clk 0:01:37.8]}
47... fxg6 {[%clk 0:01:47.4]} 48. Kd2 {[%clk 0:01:34.5]} 48... Nf6 {[%clk
0:01:44.1]} 49. Bb2+ {[%clk 0:01:34.8]} 49... Ka4 {[%clk 0:01:42.9]} 50. Ke3
{[%clk 0:01:32.4]} 50... Kb5 {[%clk 0:01:39]} 51. Kf3 {[%clk 0:01:30.3]} 51...
Kc4 {[%clk 0:01:36]} 52. Ne5+ {[%clk 0:01:29.5]} 52... Bxe5 {[%clk 0:01:37.1]}
53. dxe5 {[%clk 0:01:30.8]} 53... Ne8 {[%clk 0:01:33.9]} 54. Kg4 {[%clk
0:01:30.7]} 54... d4 {[%clk 0:01:33]} 55. Kf3 {[%clk 0:01:30.2]} 55... h5 {[%clk
0:01:32.6]} 56. Ke4 {[%clk 0:01:31]} 56... d3 {[%clk 0:01:29.3]} 57. Ke3 {[%clk
0:01:32.4]} 57... h4 {[%clk 0:01:30]} 58. Kf3 {[%clk 0:01:31.3]} 58... d2 {[%clk
0:01:30.4]} 59. Ke2 {[%clk 0:01:32.3]} 59... h3 {[%clk 0:01:31.7]} 60. Kxd2
{[%clk 0:01:33.4]} 60... h2 {[%clk 0:01:32.9]} 0-1